lending/lending_fUSD_20250114
["ID","MTS","AMOUNT","RATE_DAILY","PERIOD"]
[348914214,1736872245307,-1201.11,0.00010239,2]
[348914215,1736872245316,-500.0,0.00010239,2]
[348914216,1736872245326,-500.0,0.00010239,2]
[348914217,1736872245335,-593.12,0.00010239,2]
[348914218,1736872245347,-1091.87,0.00010239,2]
[348914219,1736872245356,-494.13,0.00010239,2]
[348914220,1736872245366,-804.34,0.00010239,2]
[348914221,1736872245375,-3004.08,0.00010239,2]
[348914222,1736872245384,-628.33,0.00010239,2]
[348914223,1736872245394,-500.0,0.00010239,2]
[348914224,1736872245404,-721.13,0.00010239,2]
[348914225,1736872245413,-2906.87,0.00010239,2]
[348914226,1736872245424,-500.0,0.00010239,2]
[348914227,1736872245434,-6610.26,0.00010239,2]
[348914228,1736872245444,-500.0,0.00010239,2]
[348914229,1736872245453,-1597.69,0.00010239,2]
[348914230,1736872245463,-903.79,0.00010239,2]
[348914231,1736872245472,-500.0,0.00010239,2]
[348914232,1736872245481,-500.0,0.00010239,2]
[348914233,1736872245490,-1417.4,0.00010239,2]
[348914234,1736872245499,-500.0,0.00010239,2]
[348914235,1736872245509,-5191.48,0.00010239,2]
[348914236,1736872245519,-505.24,0.00010239,2]
[348914237,1736872245528,-500.0,0.00010239,2]
[348914238,1736872245537,-500.0,0.00010239,2]
[348914239,1736872245546,-1623.37,0.00010239,2]
[348914240,1736872245556,-500.0,0.00010239,2]
[348914241,1736872245565,-500.0,0.00010239,2]
[348914242,1736872245575,-903.24,0.00010239,2]
[348914243,1736872245585,-500.0,0.00010239,2]
[348914244,1736872245596,-1969.17,0.00010239,2]
[348914245,1736872245606,-962.15,0.00010239,2]
[348914246,1736872245616,-932.49,0.00010239,2]
[348914247,1736872245625,-956.86,0.00010239,2]
[348914248,1736872245636,-507.97111348,0.00010239,2]
[348914249,1736872245646,-500.0,0.00010239,2]
[348914250,1736872245658,-500.0,0.00010239,2]
[348914251,1736872245668,-1098.98,0.00010239,2]
[348914252,1736872245677,-3822.97,0.00010239,2]
[348914253,1736872245687,-572.49,0.00010239,2]
[348914254,1736872245697,-500.0,0.00010239,2]
[348914255,1736872245707,-2529.39,0.00010239,2]
[348914256,1736872245717,-764.12,0.00010239,2]
[348914257,1736872245726,-987.24,0.00010239,2]
[348914258,1736872245737,-500.0,0.00010239,2]
[348914259,1736872245747,-500.0,0.00010239,2]
[348914260,1736872245757,-500.0,0.00010239,2]
[348914261,1736872245769,-500.0,0.00010239,2]
[348914262,1736872245779,-500.0,0.00010239,2]
[348914263,1736872245788,-500.0,0.00010239,2]
[348914264,1736872245798,-1889.58,0.00010239,2]
[348914265,1736872245807,-225.25283826,0.00010239,2]
[348914266,1736872245818,-538.84,0.00010239,2]
[348914267,1736872245828,-500.0,0.00010239,2]
[348914268,1736872245838,-500.0,0.00010239,2]
[348914269,1736872245848,-500.0,0.0001024,2]
[348914270,1736872245857,-500.0,0.0001024,2]
[348914271,1736872245867,-500.0,0.0001024,2]
[348914272,1736872245876,-390.48811275,0.0001024,2]
[348914273,1736872245885,-500.0,0.0001024,2]
[348914274,1736872245895,-500.0,0.0001024,2]
[348914275,1736872245904,-500.0,0.0001024,2]
[348914277,1736872245914,-500.0,0.0001024,2]
[348914279,1736872245924,-500.0,0.0001024,2]
[348914280,1736872245933,-500.0,0.0001024,2]
[348914282,1736872245943,-500.0,0.0001024,2]
[348914284,1736872245952,-500.0,0.0001024,2]
[348914286,1736872245961,-500.0,0.0001024,2]
[348914288,1736872245971,-500.0,0.0001024,2]
[348914289,1736872245981,-547.14,0.0001024,2]
[348914290,1736872245990,-500.0,0.0001024,2]
[348914291,1736872245999,-500.0,0.0001024,2]
[348914292,1736872246008,-500.0,0.0001024,2]
[348914293,1736872246019,-500.0,0.0001024,2]
[348914295,1736872246029,-500.0,0.0001024,2]
[348914296,1736872246038,-500.0,0.0001024,2]
[348914297,1736872246049,-500.0,0.0001024,2]
[348914298,1736872246059,-500.0,0.0001024,2]
[348914299,1736872246068,-500.0,0.0001024,2]
[348914300,1736872246077,-316.0861043,0.0001024,2]
[348914301,1736872246087,-624.21942434,0.0001024,2]
[348914302,1736872246096,-176.51140065,0.0001024,2]
[348914303,1736872246105,-500.0,0.0001024,2]
[348914304,1736872246115,-500.0,0.0001024,2]
[348914305,1736872246125,-500.0,0.0001024,2]
[348914306,1736872246134,-500.0,0.0001024,2]
[348914307,1736872246144,-500.0,0.0001024,2]
[348914308,1736872246153,-500.0,0.0001024,2]
[348914309,1736872246167,-500.0,0.0001024,2]
[348914310,1736872246176,-500.0,0.0001024,2]
[348914311,1736872246186,-500.0,0.0001024,2]
[348914312,1736872246196,-500.0,0.0001024,2]
[348914313,1736872246206,-500.0,0.0001024,2]
[348914314,1736872246216,-500.0,0.0001024,2]
[348914315,1736872246225,-500.0,0.0001024,2]
[348914316,1736872246235,-500.0,0.0001024,2]
[348914317,1736872246245,-500.0,0.0001024,2]
[348914318,1736872246255,-500.0,0.0001024,2]
[348914319,1736872246264,-622.83877519,0.0001024,2]
[348914320,1736872246274,-500.0,0.0001024,2]
[348914321,1736872246283,-500.0,0.0001024,2]
[348914322,1736872246295,-500.0,0.0001024,2]
[348914323,1736872246306,-460.18788059,0.0001024,2]
[348914324,1736872246315,-500.0,0.0001024,2]
[348914325,1736872246325,-291.86222837,0.0001024,2]
[348914326,1736872246335,-500.0,0.0001024,2]
[348914327,1736872246346,-500.0,0.0001024,2]
[348914328,1736872246355,-1451.36,0.0001024,2]
[348914329,1736872246364,-500.0,0.0001024,2]
[348914330,1736872246374,-500.0,0.0001024,2]
[348914331,1736872246383,-1176.92,0.0001024,2]
[348914332,1736872246392,-500.0,0.0001024,2]
[348914333,1736872246401,-559.53306057,0.0001024,2]
[348914334,1736872246411,-1055.97,0.0001024,2]
[348914335,1736872246420,-500.0,0.0001024,2]
[348914336,1736872246429,-500.0,0.0001024,2]
[348914337,1736872246438,-2317.71,0.0001024,2]
[348914338,1736872246447,-291.6262728,0.0001024,2]
[348914339,1736872246456,-500.0,0.0001024,2]
[348914340,1736872246466,-500.0,0.0001024,2]
[348914341,1736872246475,-500.0,0.0001024,2]
[348914342,1736872246486,-1470.32,0.0001024,2]
[348914343,1736872246495,-500.0,0.0001024,2]
[348914344,1736872246510,-500.0,0.0001024,2]
[348914345,1736872246519,-500.0,0.0001024,2]
[348914346,1736872246530,-2492.01,0.0001024,2]
[348914347,1736872246539,-500.0,0.0001024,2]
[348914348,1736872246550,-519.38349446,0.0001024,2]
[348914349,1736872246559,-629.18557772,0.0001024,2]
[348914350,1736872246569,-500.0,0.0001024,2]
[348914351,1736872246579,-500.0,0.0001024,2]
[348914352,1736872246589,-500.0,0.0001024,2]
[348914353,1736872246599,-500.0,0.0001024,2]
[348914354,1736872246609,-1795.2,0.0001024,2]
[348914355,1736872246618,-500.0,0.0001024,2]
[348914356,1736872246628,-500.0,0.0001024,2]
[348914357,1736872246638,-500.0,0.0001024,2]
[348914358,1736872246648,-500.0,0.0001024,2]
[348914359,1736872246661,-258.77986366,0.0001024,2]
[348914360,1736872246670,-506.29544914,0.0001024,2]
[348914361,1736872246680,-520.85714796,0.0001024,2]
[348914362,1736872246689,-501.77708785,0.0001024,2]
[348914363,1736872246699,-4913.35,0.0001024,2]
[348914364,1736872246709,-500.99726052,0.00010241,2]
[348914365,1736872246718,-500.0,0.00010241,2]
[348914366,1736872246727,-500.0,0.00010241,2]
[348914367,1736872246737,-500.0,0.00010241,2]
[348914368,1736872246746,-500.0,0.00010241,2]
[348914369,1736872246755,-638.30737679,0.00010241,2]
[348914370,1736872246765,-500.0,0.00010241,2]
[348914371,1736872246774,-500.0,0.00010241,2]
[348914372,1736872246784,-500.0,0.00010241,2]
[348914373,1736872246793,-500.0,0.00010241,2]
[348914374,1736872246804,-197.67290249,0.00010241,2]
[348914375,1736872246813,-500.0,0.00010241,2]
[348914376,1736872246823,-500.0,0.00010241,2]
[348914377,1736872246833,-496.0,0.00010241,2]
[348914378,1736872246843,-500.0,0.00010241,2]
[348914379,1736872246854,-500.0,0.00010241,2]
[348914380,1736872246864,-500.0,0.00010241,2]
[348914381,1736872246873,-500.0,0.00010241,2]
[348914382,1736872246883,-500.0,0.00010241,2]
[348914383,1736872246892,-500.0,0.00010241,2]
[348914384,1736872246902,-500.0,0.00010241,2]
[348914385,1736872246911,-662.39,0.00010241,2]
[348914386,1736872246921,-500.0,0.00010241,2]
[348914387,1736872246931,-500.0,0.00010241,2]
[348914388,1736872246940,-995.37,0.00010241,2]
[348914389,1736872246950,-162.47667438,0.00010352,2]
[348914390,1736872246961,-500.0,0.00010405,2]
[348914391,1736872246970,-1272.04,0.00010405,2]
[348914392,1736872246979,-673.02,0.00010405,2]
[348914393,1736872246989,-1169.12,0.00010405,2]
[348914394,1736872246998,-1309.78,0.00010405,2]
[348914395,1736872247007,-1255.21,0.00010405,2]
[348914396,1736872247017,-1196.07,0.00010405,2]
[348914397,1736872247027,-1678.69,0.00010405,2]
[348914398,1736872247037,-3037.98,0.00010405,2]
[348914399,1736872247046,-1319.67,0.00010405,2]
[348914400,1736872247058,-1264.68,0.00010405,2]
[348914401,1736872247068,-875.97,0.00010405,2]
[348914402,1736872247077,-875.97,0.00010405,2]
[348914403,1736872247086,-500.0,0.00010405,2]
[348914404,1736872247095,-957.02,0.00010405,2]
[348914405,1736872247104,-1235.2,0.00010405,2]
[348914406,1736872247114,-1325.08,0.00010405,2]
[348914407,1736872247123,-500.0,0.00010405,2]
[348914408,1736872247132,-2577.59,0.00010405,2]
[348914409,1736872247143,-1000.0,0.00010405,2]
[348914410,1736872247153,-2254.21,0.00010405,2]
[348914411,1736872247162,-1365.4,0.00010405,2]
[348914412,1736872247172,-1528.86,0.00010408,2]
[348914413,1736872247181,-1562.21,0.00010475,2]
[348914414,1736872247191,-150.99,0.00010475,2]
[348914415,1736872247201,-2340.78,0.00010506,2]
[348914416,1736872247210,-3843.52,0.00010506,2]
[348914417,1736872247219,-1528.57,0.00010506,2]
[348914418,1736872247229,-1660.46,0.00010506,2]
[348914419,1736872247238,-1123.89,0.00010506,2]
[348914420,1736872247247,-500.0,0.00010506,2]
[348914421,1736872247257,-1056.44,0.00010506,2]
[348914422,1736872247267,-2343.5,0.00010506,2]
[348914423,1736872247276,-522.2,0.00010506,2]
[348914424,1736872247285,-500.0,0.00010512,2]
[348914425,1736872247295,-2582.46,0.00010512,2]
[348914426,1736872247309,-3766.22,0.00010512,2]
[348914427,1736872247318,-2301.61,0.00010512,2]
[348914428,1736872247327,-500.0,0.00010512,2]
[348914429,1736872247335,-1547.57,0.00010512,2]
[348914430,1736872247345,-3820.79,0.00010512,2]
[348914431,1736872247356,-500.0,0.00010512,2]
[348914432,1736872247366,-500.0,0.00010512,2]
[348914433,1736872247377,-1208.85,0.00010512,2]
[348914434,1736872247387,-500.0,0.00010512,2]
[348914435,1736872247396,-500.0,0.00010512,2]
[348914436,1736872247405,-405.77368361,0.00010512,2]
[348914437,1736872247414,-1426.4,0.00010512,2]
[348914438,1736872247424,-500.0,0.00010512,2]
[348914439,1736872247435,-500.0,0.00010512,2]
[348914440,1736872247445,-500.0,0.00010513,2]
[348914441,1736872247455,-500.0,0.00010513,2]
[348914442,1736872247464,-500.0,0.00010513,2]
[348914443,1736872247474,-500.0,0.00010513,2]
[348914444,1736872247484,-500.0,0.00010513,2]
[348914445,1736872247493,-500.0,0.00010513,2]
[348914446,1736872247502,-583.02,0.00010513,2]
[348914447,1736872247511,-500.0,0.00010513,2]
[348914448,1736872247520,-714.03,0.00010513,2]
[348914449,1736872247529,-500.0,0.00010513,2]
[348914450,1736872247538,-1181.5,0.00010513,2]
[348914451,1736872247548,-792.24,0.00010513,2]
[348914452,1736872247559,-1068.78,0.00010513,2]
[348914453,1736872247568,-500.0,0.00010513,2]
[348914454,1736872247577,-866.79,0.00010513,2]
[348914455,1736872247588,-500.0,0.00010513,2]
[348914456,1736872247597,-500.0,0.00010513,2]
[348914457,1736872247607,-602.0,0.00010513,2]
[348914458,1736872247616,-508.85,0.00010513,2]
[348914459,1736872247627,-634.25,0.00010513,2]
[348914460,1736872247636,-692.74,0.00010513,2]
[348914461,1736872247645,-536.73,0.00010513,2]
[348914462,1736872247654,-1038.27,0.00010513,2]
[348914463,1736872247664,-516.91,0.00010513,2]
[348914464,1736872247673,-500.0,0.00010513,2]
[348914465,1736872247682,-747.3,0.00010513,2]
[348914466,1736872247692,-500.0,0.00010513,2]
[348914467,1736872247701,-561.38,0.00010513,2]
[348914468,1736872247712,-988.41,0.00010513,2]
[348914469,1736872247721,-1790.56,0.00010513,2]
[348914470,1736872247731,-681.34,0.00010513,2]
[348914471,1736872247740,-500.0,0.00010513,2]
[348914472,1736872247749,-500.0,0.00010513,2]
[348914473,1736872247759,-500.0,0.00010513,2]
[348914474,1736872247769,-797.39,0.00010513,2]
[348914475,1736872247779,-500.0,0.00010513,2]
[348914476,1736872247788,-500.0,0.00010513,2]
[348914477,1736872247798,-500.0,0.00010513,2]
[348914478,1736872247808,-500.0,0.00010513,2]
[348914479,1736872247818,-778.29,0.00010513,2]
[348914480,1736872247827,-500.0,0.00010513,2]
[348914481,1736872247836,-940.99,0.00010513,2]
[348914482,1736872247846,-500.0,0.00010513,2]
[348914483,1736872247855,-500.0,0.00010513,2]
[348914484,1736872247864,-500.0,0.00010513,2]
[348914485,1736872247874,-1229.29,0.00010513,2]
[348914486,1736872247883,-1006.25,0.00010513,2]
[348914487,1736872247892,-500.0,0.00010513,2]
[348914488,1736872247903,-500.0,0.00010513,2]
[348914489,1736872247912,-976.73,0.00010513,2]
[348914490,1736872247922,-500.0,0.00010513,2]
[348914491,1736872247932,-1044.65,0.00010513,2]
[348914492,1736872247941,-563.76,0.00010513,2]
[348914493,1736872247951,-1040.02,0.00010513,2]
[348914494,1736872247960,-747.75,0.00010513,2]
[348914495,1736872247971,-500.0,0.00010513,2]
[348914496,1736872247981,-942.04,0.00010513,2]
[348914497,1736872247990,-500.0,0.00010513,2]
[348914498,1736872247999,-1793.87,0.00010513,2]
[348914499,1736872248008,-500.0,0.00010513,2]
[348914500,1736872248018,-1163.45,0.00010513,2]
[348914501,1736872248028,-500.0,0.00010513,2]
[348914502,1736872248037,-500.0,0.00010513,2]
[348914503,1736872248047,-593.13,0.00010513,2]
[348914504,1736872248056,-500.0,0.00010513,2]
[348914505,1736872248066,-500.0,0.00010513,2]
[348914506,1736872248076,-500.0,0.00010513,2]
[348914507,1736872248085,-1074.9,0.00010513,2]
[348914508,1736872248095,-500.0,0.00010513,2]
[348914509,1736872248105,-500.0,0.00010513,2]
[348914510,1736872248114,-2876.96,0.00010513,2]
[348914511,1736872248124,-1106.23,0.00010513,2]
[348914512,1736872248133,-500.0,0.00010513,2]
[348914513,1736872248142,-1223.96,0.00010513,2]
[348914514,1736872248152,-500.0,0.00010513,2]
[348914515,1736872248162,-941.53,0.00010513,2]
[348914516,1736872248172,-500.0,0.00010513,2]
[348914517,1736872248181,-500.0,0.00010513,2]
[348914518,1736872248191,-826.21,0.00010513,2]
[348914519,1736872248200,-713.39,0.00010513,2]
[348914520,1736872248210,-1982.6,0.00010513,2]
[348914521,1736872248220,-500.0,0.00010513,2]
[348914522,1736872248230,-1269.8,0.00010513,2]
[348914523,1736872248239,-1061.78,0.00010513,2]
[348914524,1736872248249,-500.0,0.00010513,2]
[348914525,1736872248259,-1071.15,0.00010513,2]
[348914526,1736872248268,-647.07,0.00010513,2]
[348914527,1736872248278,-500.0,0.00010513,2]
[348914528,1736872248288,-1641.47,0.00010513,2]
[348914529,1736872248306,-500.0,0.00010513,2]
[348914530,1736872248315,-500.0,0.00010513,2]
[348914531,1736872248325,-500.0,0.00010513,2]
[348914532,1736872248335,-1015.13304,0.00010513,2]
[348914533,1736872248347,-500.0,0.00010513,2]
[348914534,1736872248357,-500.0,0.00010513,2]
[348914535,1736872248367,-500.0,0.00010513,2]
[348914536,1736872248377,-1061.21,0.00010513,2]
[348914537,1736872248388,-500.0,0.00010513,2]
[348914538,1736872248598,-850.59,0.00010513,2]
[348914539,1736872248609,-500.0,0.00010513,2]
[348914540,1736872248619,-4483.26,0.00010513,2]
[348914541,1736872248629,-500.0,0.00010513,2]
[348914542,1736872248639,-1028.024937,0.00010513,2]
[348914543,1736872248649,-1008.96,0.00010513,2]
[348914544,1736872248659,-500.0,0.00010513,2]
[348914545,1736872248669,-1034.71,0.00010513,2]
[348914546,1736872248690,-856.72,0.00010513,2]
[348914547,1736872248702,-500.0,0.00010513,2]
[348914548,1736872248713,-1242.21,0.00010513,2]
[348914549,1736872248723,-729.65,0.00010513,2]
[348914550,1736872248734,-500.0,0.00010513,2]
[348914551,1736872248745,-807.27,0.00010513,2]
[348914552,1736872248755,-500.0,0.00010513,2]
[348914553,1736872248766,-1062.24,0.00010513,2]
[348914554,1736872248776,-500.0,0.00010513,2]
[348914555,1736872248787,-500.0,0.00010513,2]
[348914556,1736872248798,-570.32,0.00010513,2]
[348914557,1736872248810,-942.52,0.00010513,2]
[348914558,1736872248821,-500.0,0.00010513,2]
[348914559,1736872248832,-957.09,0.00010513,2]
[348914560,1736872248842,-500.0,0.00010513,2]
[348914561,1736872248853,-500.0,0.00010513,2]
[348914562,1736872248863,-500.0,0.00010513,2]
[348914563,1736872248875,-693.23,0.00010513,2]
[348914564,1736872248885,-3653.54,0.00010513,2]
[348914565,1736872248896,-583.72,0.00010513,2]
[348914566,1736872248908,-500.0,0.00010513,2]
[348914567,1736872248921,-500.0,0.00010513,2]
[348914568,1736872248935,-1575.62,0.00010513,2]
[348914569,1736872248946,-500.0,0.00010513,2]
[348914570,1736872248957,-3284.13,0.00010513,2]
[348914571,1736872248967,-1170.16,0.00010513,2]
[348914572,1736872248978,-10132.63,0.00010513,2]
[348914573,1736872248988,-500.0,0.00010513,2]
[348914574,1736872248999,-775.45,0.00010513,2]
[348914575,1736872249009,-500.0,0.00010513,2]
[348914576,1736872249019,-1128.07,0.00010513,2]
[348914577,1736872249029,-500.0,0.00010513,2]
[348914578,1736872249039,-773.5,0.00010513,2]
[348914579,1736872249049,-500.0,0.00010513,2]
[348914580,1736872249060,-4764.34,0.00010513,2]
[348914581,1736872249070,-1201.11,0.00010513,2]
[348914582,1736872249080,-593.12,0.00010513,2]
[348914583,1736872249090,-1091.87,0.00010513,2]
[348914584,1736872249100,-804.34,0.00010513,2]
[348914585,1736872249110,-3004.08,0.00010513,2]
[348914586,1736872249120,-628.33,0.00010513,2]
[348914587,1736872249130,-721.13,0.00010513,2]
[348914588,1736872249140,-2906.87,0.00010513,2]
[348914589,1736872249151,-500.0,0.00010513,2]
[348914590,1736872249161,-6610.26,0.00010513,2]
[348914591,1736872249170,-500.0,0.00010513,2]
[348914592,1736872249181,-1597.69,0.00010513,2]
[348914593,1736872249191,-903.79,0.00010513,2]
[348914594,1736872249202,-500.0,0.00010513,2]
[348914595,1736872249212,-500.0,0.00010513,2]
[348914596,1736872249222,-1417.4,0.00010513,2]
[348914597,1736872249233,-500.0,0.00010513,2]
[348914598,1736872249243,-505.24,0.00010513,2]
[348914599,1736872249253,-5191.48,0.00010513,2]
[348914600,1736872249263,-500.0,0.00010513,2]
[348914601,1736872249276,-500.0,0.00010513,2]
[348914602,1736872249287,-1623.37,0.00010513,2]
[348914603,1736872249298,-500.0,0.00010513,2]
[348914604,1736872249312,-500.0,0.00010513,2]
[348914605,1736872249322,-903.24,0.00010513,2]
[348914606,1736872249333,-500.0,0.00010513,2]
[348914607,1736872249345,-1969.17,0.00010513,2]
[348914608,1736872249355,-962.15,0.00010513,2]
[348914609,1736872249366,-932.49,0.00010513,2]
[348914610,1736872249377,-956.86,0.00010513,2]
[348914611,1736872249387,-500.0,0.00010513,2]
[348914612,1736872249397,-500.0,0.00010513,2]
[348914613,1736872249408,-1098.98,0.00010513,2]
[348914614,1736872249418,-3822.97,0.00010513,2]
[348914615,1736872249429,-572.49,0.00010513,2]
[348914616,1736872249440,-500.0,0.00010513,2]
[348914617,1736872249450,-2529.39,0.00010513,2]
[348914618,1736872249460,-764.12,0.00010513,2]
[348914619,1736872249470,-987.24,0.00010513,2]
[348914620,1736872249483,-500.0,0.00010513,2]
[348914621,1736872249493,-500.0,0.00010513,2]
[348914622,1736872249504,-500.0,0.00010513,2]
[348914623,1736872249514,-500.0,0.00010513,2]
[348914624,1736872249524,-1889.58,0.00010513,2]
[348914625,1736872249534,-538.84,0.00010513,2]
[348914626,1736872249544,-500.0,0.00010513,2]
[348914627,1736872249556,-500.0,0.00010514,2]
[348914628,1736872249565,-500.0,0.00010514,2]
[348914629,1736872249575,-500.0,0.00010514,2]
[348914630,1736872249586,-500.0,0.00010514,2]
[348914631,1736872249596,-500.0,0.00010514,2]
[348914632,1736872249606,-500.0,0.00010514,2]
[348914633,1736872249616,-336.5636544,0.00010514,2]
[348914634,1736872249626,-500.0,0.00010514,2]
[348914635,1736872249636,-547.14,0.00010514,2]
[348914636,1736872249646,-500.0,0.00010514,2]
[348914637,1736872249655,-500.0,0.00010514,2]
[348914638,1736872249665,-500.0,0.00010514,2]
[348914639,1736872249675,-588.13052689,0.00010514,2]
[348914640,1736872249685,-500.0,0.00010514,2]
[348914641,1736872249695,-500.0,0.00010514,2]
[348914642,1736872249705,-500.0,0.00010514,2]
[348914643,1736872249715,-500.0,0.00010514,2]
[348914644,1736872249726,-500.0,0.00010514,2]
[348914645,1736872249736,-500.0,0.00010514,2]
[348914646,1736872249746,-500.0,0.00010514,2]
[348914647,1736872249757,-500.0,0.00010514,2]
[348914648,1736872249767,-500.0,0.00010514,2]
[348914649,1736872249777,-500.0,0.00010514,2]
[348914650,1736872249787,-500.0,0.00010514,2]
[348914651,1736872249798,-500.0,0.00010514,2]
[348914652,1736872249812,-500.0,0.00010514,2]
[348914653,1736872249822,-500.0,0.00010514,2]
[348914654,1736872249831,-500.0,0.00010514,2]
[348914655,1736872249841,-500.0,0.00010514,2]
[348914656,1736872249851,-500.0,0.00010514,2]
[348914657,1736872249860,-500.0,0.00010514,2]
[348914658,1736872249870,-500.0,0.00010514,2]
[348914659,1736872249880,-500.0,0.00010514,2]
[348914660,1736872249890,-500.0,0.00010514,2]
[348914661,1736872249900,-500.0,0.00010514,2]
[348914662,1736872249910,-500.0,0.00010514,2]
[348914663,1736872249920,-1451.36,0.00010514,2]
[348914664,1736872249930,-217.9430017,0.00010514,2]
[348914665,1736872249939,-500.0,0.00010514,2]
[348914666,1736872249949,-1176.92,0.00010514,2]
[348914667,1736872249959,-500.0,0.00010514,2]
[348914668,1736872249969,-1055.97,0.00010514,2]
[348914669,1736872249979,-500.0,0.00010514,2]
[348914670,1736872249989,-500.0,0.00010514,2]
[348914671,1736872249999,-2317.71,0.00010514,2]
[348914672,1736872250008,-500.0,0.00010514,2]
[348914673,1736872250018,-500.0,0.00010514,2]
[348914674,1736872250028,-500.0,0.00010514,2]
[348914675,1736872250038,-1470.32,0.00010514,2]
[348914676,1736872250048,-500.0,0.00010514,2]
[348914677,1736872250060,-2492.01,0.00010514,2]
[348914678,1736872250069,-500.0,0.00010514,2]
[348914679,1736872250079,-500.0,0.00010514,2]
[348914680,1736872250089,-500.0,0.00010514,2]
[348914681,1736872250099,-500.0,0.00010514,2]
[348914682,1736872250109,-1795.2,0.00010514,2]
[348914683,1736872250118,-500.0,0.00010514,2]
[348914684,1736872250128,-500.0,0.00010514,2]
[348914685,1736872250138,-500.0,0.00010514,2]
[348914686,1736872250147,-4913.35,0.00010514,2]
[348914687,1736872250157,-500.0,0.00010515,2]
[348914688,1736872250167,-500.0,0.00010515,2]
[348914689,1736872250179,-500.0,0.00010515,2]
[348914690,1736872250188,-500.0,0.00010515,2]
[348914691,1736872250198,-500.0,0.00010515,2]
[348914692,1736872250207,-500.0,0.00010515,2]
[348914693,1736872250217,-500.0,0.00010515,2]
[348914694,1736872250227,-500.0,0.00010515,2]
[348914695,1736872250236,-500.0,0.00010515,2]
[348914696,1736872250246,-500.0,0.00010515,2]
[348914697,1736872250255,-500.0,0.00010515,2]
[348914698,1736872250264,-500.0,0.00010515,2]
[348914699,1736872250274,-662.39,0.00010515,2]
[348914700,1736872250284,-500.0,0.00010515,2]
[348914701,1736872250297,-500.0,0.00010515,2]
[348914702,1736872250307,-1456.54324193,0.00010541,2]
[348914703,1736872250317,-283.14590325,0.00010579,2]
[348914704,1736872250326,-162.47667438,0.00010596,2]
[348914705,1736872250338,-501.0,0.00010676,2]
[348914706,1736872250347,-500.0,0.00010679,2]
[348914707,1736872250356,-1272.04,0.00010679,2]
[348914708,1736872250366,-673.02,0.00010679,2]
[348914709,1736872250376,-1169.12,0.00010679,2]
[348914710,1736872250386,-1309.78,0.00010679,2]
[348914711,1736872250395,-1255.21,0.00010679,2]
[348914712,1736872250406,-1196.07,0.00010679,2]
[348914713,1736872250415,-1678.69,0.00010679,2]
[348914714,1736872250425,-3037.98,0.00010679,2]
[348914715,1736872250435,-1319.67,0.00010679,2]
[348914716,1736872250444,-1264.68,0.00010679,2]
[348914717,1736872250453,-875.97,0.00010679,2]
[348914718,1736872250463,-957.02,0.00010679,2]
[348914719,1736872250472,-1235.2,0.00010679,2]
[348914720,1736872250482,-1325.08,0.00010679,2]